Workbook

Sheet Summary
A3: ORLANDO/ST. CLOUD REGIONAL RESILIENCY CONNECTION
A4: St. Cloud Central - Magnolia Ranch 230kV Line Option
B5: Customer: | C5: OUC
B6: Project No:
B7: Description:
B8: Location: | C8: FL
A10: NO. | B10: DESCRIPTION | D10: Total
A12: 1 | B12: St. Cloud Central - Magnolia Ranch 230kV Line (2017 Estimate) | D12: 57346045.58
B13: Overhead line
B14: Overhead cost - $37,155,726
B15: Conductor adder - $92,883
B16: Structure adder - $2,672,437
B17: Underground line
B18: Underground cost - $14,300,000
B19: 813 MVA, 1272 ACSS/TW
B20: Move spare 230/69kV transformer from South to Central
B21: Leave existing 69kV line in place (no demo work)
B22: No transformer needed at Magnolia Ranch
B23: No transformer or tie into St. Cloud North
A24: 2 | B24: Added Specific Cost Components - 2020 Estimates: | D24: =(D12*2.45)-D12 -> 83151766.1
B25: Land & Land Rights
B26: Additional Equipment & Installation Costs (e.g., double circuited poles,
B27: incremental substation infrastructure)
B28: Escalation in labor and steel costs
B29: Land Clearing & Preparation
B30: Contingency
A31: 3 | B31: Carl Wall - Dom Toro 69 kV Upgrade - deleted | D31: 0
C32: Total Direct Installation | D32: =SUM(D11:D31) -> 140497811.7

Sheet KQ (hidden)
B1: Customer: | C1: =+#REF! ->  | H1: Key Quantity Summary
B2: Project No: | C2: =+#REF! ->  | L2: Estimator: | M2: =+#REF! -> 
B3: Description: | C3: =+#REF! ->  | L3: Date: | M3: =+#REF! -> 
B4: Location: | C4: =+#REF! ->  | L4: Rev: | M4: =+#REF! -> 
A6: NO. | B6: ACCOUNT | D6: Key Qty | E6: Unit | F6: Unit MH | G6: MH Labor | H6: Wage Rate | I6: Labor | J6: Unit | K6: Construction Equipment | L6: Unit Matl | M6: Equipment / Materials | N6: Unit Total | O6: Total
A8: 1 | B8: Equipment | D8: =SUMIFS(#REF!,#REF!,$B8,#REF!,$E8) ->  | E8: PCS- | F8: =IF($D8=0,"--",G8/$D8) ->  | G8: =SUMIFS(#REF!,#REF!,$B8) ->  | H8: =+IF(G8=0,"--",I8/G8) ->  | I8: =SUMIFS(#REF!,#REF!,$B8) ->  | J8: =IF($D8=0,"--",K8/$D8) ->  | K8: =SUMIFS(#REF!,#REF!,$B8) ->  | L8: =IF($D8=0,"--",M8/$D8) ->  | M8: =SUMIFS(#REF!,#REF!,$B8) ->  | N8: =IF($D8=0,"--",O8/$D8) ->  | O8: =SUM(I8,K8,M8) -> 
A9: 2 | B9: Civil | D9: =SUMIFS(#REF!,#REF!,$B9,#REF!,$E9) ->  | F9: =IF($D9=0,"--",G9/$D9) ->  | G9: =SUMIFS(#REF!,#REF!,$B9) ->  | H9: =+IF(G9=0,"--",I9/G9) ->  | I9: =SUMIFS(#REF!,#REF!,$B9) ->  | J9: =IF($D9=0,"--",K9/$D9) ->  | K9: =SUMIFS(#REF!,#REF!,$B9) ->  | L9: =IF($D9=0,"--",M9/$D9) ->  | M9: =SUMIFS(#REF!,#REF!,$B9) ->  | N9: =IF($D9=0,"--",O9/$D9) ->  | O9: =SUM(I9,K9,M9) -> 
A10: 3 | B10: Deep Foundations | D10: =SUMIFS(#REF!,#REF!,$B10,#REF!,$E10) ->  | E10: Piles- | G10: =SUMIFS(#REF!,#REF!,$B10) ->  | I10: =SUMIFS(#REF!,#REF!,$B10) ->  | K10: =SUMIFS(#REF!,#REF!,$B10) ->  | M10: =SUMIFS(#REF!,#REF!,$B10) -> 
A11: 4 | B11: Concrete | D11: =SUMIFS(#REF!,#REF!,$B11,#REF!,$E11) ->  | E11: CY- | G11: =SUMIFS(#REF!,#REF!,$B11) ->  | I11: =SUMIFS(#REF!,#REF!,$B11) ->  | K11: =SUMIFS(#REF!,#REF!,$B11) ->  | M11: =SUMIFS(#REF!,#REF!,$B11) -> 
B12: Cementitious Grout | D12: =SUMIFS(#REF!,#REF!,$B12,#REF!,$E12) ->  | E12: SF- | G12: =SUMIFS(#REF!,#REF!,$B12) ->  | I12: =SUMIFS(#REF!,#REF!,$B12) ->  | K12: =SUMIFS(#REF!,#REF!,$B12) ->  | M12: =SUMIFS(#REF!,#REF!,$B12) -> 
B13: Epoxy Grout | D13: =SUMIFS(#REF!,#REF!,$B13,#REF!,$E13) ->  | E13: CF- | G13: =SUMIFS(#REF!,#REF!,$B13) ->  | I13: =SUMIFS(#REF!,#REF!,$B13) ->  | K13: =SUMIFS(#REF!,#REF!,$B13) ->  | M13: =SUMIFS(#REF!,#REF!,$B13) -> 
A14: 5 | B14: Steel | D14: =SUMIFS(#REF!,#REF!,$B14,#REF!,$E14) ->  | E14: TON- | G14: =SUMIFS(#REF!,#REF!,$B14) ->  | I14: =SUMIFS(#REF!,#REF!,$B14) ->  | K14: =SUMIFS(#REF!,#REF!,$B14) ->  | M14: =SUMIFS(#REF!,#REF!,$B14) -> 
A15: 6 | B15: Buildings | D15: =SUMIFS(#REF!,#REF!,$B15,#REF!,$E15) ->  | E15: SF- | G15: =SUMIFS(#REF!,#REF!,$B15) ->  | I15: =SUMIFS(#REF!,#REF!,$B15) ->  | K15: =SUMIFS(#REF!,#REF!,$B15) ->  | M15: =SUMIFS(#REF!,#REF!,$B15) -> 
A16: 7 | B16: Pipe | D16: =SUMIFS(#REF!,#REF!,$B16,#REF!,$E16) ->  | E16: LF- | G16: =SUMIFS(#REF!,#REF!,$B16) ->  | I16: =SUMIFS(#REF!,#REF!,$B16) ->  | K16: =SUMIFS(#REF!,#REF!,$B16) ->  | M16: =SUMIFS(#REF!,#REF!,$B16) -> 
A17: 8 | B17: Electrical | D17: =SUMIFS(#REF!,#REF!,$B17,#REF!,$E17) ->  | E17: LF- | G17: =SUMIFS(#REF!,#REF!,$B17) ->  | I17: =SUMIFS(#REF!,#REF!,$B17) ->  | K17: =SUMIFS(#REF!,#REF!,$B17) ->  | M17: =SUMIFS(#REF!,#REF!,$B17) -> 
A18: 9 | B18: Instrument & Control | D18: =SUMIFS(#REF!,#REF!,$B18,#REF!,$E18) ->  | E18: EA- | G18: =SUMIFS(#REF!,#REF!,$B18) ->  | I18: =SUMIFS(#REF!,#REF!,$B18) ->  | K18: =SUMIFS(#REF!,#REF!,$B18) ->  | M18: =SUMIFS(#REF!,#REF!,$B18) -> 
A19: 10 | B19: Piping Insulation | D19: =SUMIFS(#REF!,#REF!,$B19,#REF!,$E19) ->  | E19: LF- | G19: =SUMIFS(#REF!,#REF!,$B19) ->  | I19: =SUMIFS(#REF!,#REF!,$B19) ->  | K19: =SUMIFS(#REF!,#REF!,$B19) ->  | M19: =SUMIFS(#REF!,#REF!,$B19) -> 
B20: Equipment Insulation | D20: =SUMIFS(#REF!,#REF!,$B20,#REF!,$E20) ->  | E20: SF- | G20: =SUMIFS(#REF!,#REF!,$B20) ->  | I20: =SUMIFS(#REF!,#REF!,$B20) ->  | K20: =SUMIFS(#REF!,#REF!,$B20) ->  | M20: =SUMIFS(#REF!,#REF!,$B20) -> 
B21: Fireproofing | D21: =SUMIFS(#REF!,#REF!,$B21,#REF!,$E21) ->  | E21: SF- | G21: =SUMIFS(#REF!,#REF!,$B21) ->  | I21: =SUMIFS(#REF!,#REF!,$B21) ->  | K21: =SUMIFS(#REF!,#REF!,$B21) ->  | M21: =SUMIFS(#REF!,#REF!,$B21) -> 
A22: 11 | B22: Coatings | D22: =SUMIFS(#REF!,#REF!,$B22,#REF!,$E22) ->  | E22: SF- | G22: =SUMIFS(#REF!,#REF!,$B22) ->  | I22: =SUMIFS(#REF!,#REF!,$B22) ->  | K22: =SUMIFS(#REF!,#REF!,$B22) ->  | M22: =SUMIFS(#REF!,#REF!,$B22) -> 
A23: 12 | B23: Special | D23: =SUMIFS(#REF!,#REF!,$B23,#REF!,$E23) ->  | G23: =SUMIFS(#REF!,#REF!,$B23) ->  | I23: =SUMIFS(#REF!,#REF!,$B23) ->  | K23: =SUMIFS(#REF!,#REF!,$B23) ->  | M23: =SUMIFS(#REF!,#REF!,$B23) -> 
A24: 13 | B24: Demolition | D24: =SUMIFS(#REF!,#REF!,$B24,#REF!,$E24) ->  | G24: =SUMIFS(#REF!,#REF!,$B24) ->  | I24: =SUMIFS(#REF!,#REF!,$B24) ->  | K24: =SUMIFS(#REF!,#REF!,$B24) ->  | M24: =SUMIFS(#REF!,#REF!,$B24) -> 
A25: 14 | B25: Miscellaneous Directs | D25: =SUMIFS(#REF!,#REF!,$B25,#REF!,$E25) ->  | G25: =SUMIFS(#REF!,#REF!,$B25) ->  | I25: =SUMIFS(#REF!,#REF!,$B25) ->  | K25: =SUMIFS(#REF!,#REF!,$B25) ->  | M25: =SUMIFS(#REF!,#REF!,$B25) -> 
B27: Freight | H27: =+IF(G27=0,"--",I27/G27) -> -- | I27: =SUMIFS(#REF!,#REF!,$B27) ->  | J27: -- | K27: =SUMIFS(#REF!,#REF!,$B27) ->  | L27: -- | M27: =SUMIFS(#REF!,#REF!,$B27) ->  | N27: -- | O27: =SUM(I27,K27,M27) -> 
C29: Total Direct Cost (TDC) | G29: =SUM(G8:G28) ->  | H29: =+IF(G29=0,"--",I29/G29) ->  | I29: =SUM(I8:I28) ->  | K29: =SUM(K8:K28) ->  | M29: =SUM(M8:M28) ->  | O29: =SUM(O8:O28) ->  | P29: =ROUND(+O29-M29-K29-I29, 0) -> 
O30: =ROUND(+O29-#REF!, 0) -> 

Sheet Area (hidden)
B1: Customer: | C1: =+#REF! ->  | F1: Area 1 Summary
B2: Project No: | C2: =+#REF! ->  | H2: Estimator: | I2: =+#REF! -> 
B3: Description: | C3: =+#REF! ->  | H3: Date: | I3: =+#REF! -> 
B4: Location: | C4: =+#REF! ->  | H4: Rev: | I4: =+#REF! -> 
A6: NO. | B6: ACCOUNT | D6: MH Labor | E6: Wage Rate | F6: Labor | G6: Construction Equipment | H6: Equipment / Materials | I6: Total
B8: Area 1 | D8: =SUMIFS(#REF!,#REF!,$B8) ->  | E8: =+IF(D8=0,"--",F8/D8) ->  | F8: =SUMIFS(#REF!,#REF!,$B8) ->  | G8: =SUMIFS(#REF!,#REF!,$B8) ->  | H8: =SUMIFS(#REF!,#REF!,$B8) ->  | I8: =SUM(F8,G8,H8) ->  | J8: =ROUND(SUMIFS(#REF!,#REF!,$B8)-I8, 0) -> 
B9: Area 2 | D9: =SUMIFS(#REF!,#REF!,$B9) ->  | E9: =+IF(D9=0,"--",F9/D9) ->  | F9: =SUMIFS(#REF!,#REF!,$B9) ->  | G9: =SUMIFS(#REF!,#REF!,$B9) ->  | H9: =SUMIFS(#REF!,#REF!,$B9) ->  | I9: =SUM(F9,G9,H9) ->  | J9: =ROUND(SUMIFS(#REF!,#REF!,$B9)-I9, 0) -> 
B10: Area 3 | D10: =SUMIFS(#REF!,#REF!,$B10) ->  | F10: =SUMIFS(#REF!,#REF!,$B10) ->  | G10: =SUMIFS(#REF!,#REF!,$B10) ->  | H10: =SUMIFS(#REF!,#REF!,$B10) ->  | J10: =ROUND(SUMIFS(#REF!,#REF!,$B10)-I10, 0) -> 
B11: Area 4 | D11: =SUMIFS(#REF!,#REF!,$B11) ->  | F11: =SUMIFS(#REF!,#REF!,$B11) ->  | G11: =SUMIFS(#REF!,#REF!,$B11) ->  | H11: =SUMIFS(#REF!,#REF!,$B11) ->  | J11: =ROUND(SUMIFS(#REF!,#REF!,$B11)-I11, 0) -> 
B12: Area 5 | D12: =SUMIFS(#REF!,#REF!,$B12) ->  | F12: =SUMIFS(#REF!,#REF!,$B12) ->  | G12: =SUMIFS(#REF!,#REF!,$B12) ->  | H12: =SUMIFS(#REF!,#REF!,$B12) ->  | J12: =ROUND(SUMIFS(#REF!,#REF!,$B12)-I12, 0) -> 
B13: Area 6 | D13: =SUMIFS(#REF!,#REF!,$B13) ->  | F13: =SUMIFS(#REF!,#REF!,$B13) ->  | G13: =SUMIFS(#REF!,#REF!,$B13) ->  | H13: =SUMIFS(#REF!,#REF!,$B13) ->  | J13: =ROUND(SUMIFS(#REF!,#REF!,$B13)-I13, 0) -> 
B14: Area 7 | D14: =SUMIFS(#REF!,#REF!,$B14) ->  | F14: =SUMIFS(#REF!,#REF!,$B14) ->  | G14: =SUMIFS(#REF!,#REF!,$B14) ->  | H14: =SUMIFS(#REF!,#REF!,$B14) ->  | J14: =ROUND(SUMIFS(#REF!,#REF!,$B14)-I14, 0) -> 
B15: Area 8 | D15: =SUMIFS(#REF!,#REF!,$B15) ->  | F15: =SUMIFS(#REF!,#REF!,$B15) ->  | G15: =SUMIFS(#REF!,#REF!,$B15) ->  | H15: =SUMIFS(#REF!,#REF!,$B15) ->  | J15: =ROUND(SUMIFS(#REF!,#REF!,$B15)-I15, 0) -> 
B16: Area 9 | D16: =SUMIFS(#REF!,#REF!,$B16) ->  | F16: =SUMIFS(#REF!,#REF!,$B16) ->  | G16: =SUMIFS(#REF!,#REF!,$B16) ->  | H16: =SUMIFS(#REF!,#REF!,$B16) ->  | J16: =ROUND(SUMIFS(#REF!,#REF!,$B16)-I16, 0) -> 
B17: Area 10 | D17: =SUMIFS(#REF!,#REF!,$B17) ->  | F17: =SUMIFS(#REF!,#REF!,$B17) ->  | G17: =SUMIFS(#REF!,#REF!,$B17) ->  | H17: =SUMIFS(#REF!,#REF!,$B17) ->  | J17: =ROUND(SUMIFS(#REF!,#REF!,$B17)-I17, 0) -> 
B18: Area 11 | D18: =SUMIFS(#REF!,#REF!,$B18) ->  | F18: =SUMIFS(#REF!,#REF!,$B18) ->  | G18: =SUMIFS(#REF!,#REF!,$B18) ->  | H18: =SUMIFS(#REF!,#REF!,$B18) ->  | J18: =ROUND(SUMIFS(#REF!,#REF!,$B18)-I18, 0) -> 
B19: Area 12 | D19: =SUMIFS(#REF!,#REF!,$B19) ->  | F19: =SUMIFS(#REF!,#REF!,$B19) ->  | G19: =SUMIFS(#REF!,#REF!,$B19) ->  | H19: =SUMIFS(#REF!,#REF!,$B19) ->  | J19: =ROUND(SUMIFS(#REF!,#REF!,$B19)-I19, 0) -> 
B20: Area 13 | D20: =SUMIFS(#REF!,#REF!,$B20) ->  | F20: =SUMIFS(#REF!,#REF!,$B20) ->  | G20: =SUMIFS(#REF!,#REF!,$B20) ->  | H20: =SUMIFS(#REF!,#REF!,$B20) ->  | J20: =ROUND(SUMIFS(#REF!,#REF!,$B20)-I20, 0) -> 
B21: Area 14 | D21: =SUMIFS(#REF!,#REF!,$B21) ->  | F21: =SUMIFS(#REF!,#REF!,$B21) ->  | G21: =SUMIFS(#REF!,#REF!,$B21) ->  | H21: =SUMIFS(#REF!,#REF!,$B21) ->  | J21: =ROUND(SUMIFS(#REF!,#REF!,$B21)-I21, 0) -> 
C24: Total Direct Cost (TDC) | D24: =SUM(D8:D23) ->  | E24: =+IF(D24=0,"--",F24/D24) ->  | F24: =SUM(F8:F23) ->  | G24: =SUM(G8:G23) ->  | H24: =SUM(H8:H23) ->  | I24: =SUM(I8:I23) ->  | J24: =ROUND(+I24-H24-G24-F24, 0) -> 
D25: =+D24-#REF! ->  | F25: =+F24-#REF! ->  | G25: =+G24-#REF! ->  | H25: =+H24-#REF! ->  | I25: =+I24-#REF! -> 

Sheet Area & KQ (hidden)
B1: Customer: | C1: =+#REF! ->  | H1: =+Q1&" Key Quantity Summary" -> Area 1 Key Quantity Summary | Q1: Area 1
B2: Project No: | C2: =+#REF! ->  | L2: Estimator: | M2: =+#REF! -> 
B3: Description: | C3: =+#REF! ->  | L3: Date: | M3: =+#REF! -> 
B4: Location: | C4: =+#REF! ->  | L4: Rev: | M4: =+#REF! -> 
A6: NO. | B6: ACCOUNT | D6: Key Qty | E6: Unit | F6: Unit MH | G6: MH Labor | H6: Wage Rate | I6: Labor | J6: Unit | K6: Construction Equipment | L6: Unit Matl | M6: Equipment / Materials | N6: Unit Total | O6: Total
A8: 1 | B8: Equipment | D8: =SUMIFS(#REF!,#REF!,$B8,#REF!,$E8,#REF!,$Q$1) ->  | E8: PCS- | F8: =IF($D8=0,"--",G8/$D8) ->  | G8: =SUMIFS(#REF!,#REF!,$B8,#REF!,$Q$1) ->  | H8: =+IF(G8=0,"--",I8/G8) ->  | I8: =SUMIFS(#REF!,#REF!,$B8,#REF!,$Q$1) ->  | J8: =IF($D8=0,"--",K8/$D8) ->  | K8: =SUMIFS(#REF!,#REF!,$B8,#REF!,$Q$1) ->  | L8: =IF($D8=0,"--",M8/$D8) ->  | M8: =SUMIFS(#REF!,#REF!,$B8,#REF!,$Q$1) ->  | N8: =IF($D8=0,"--",O8/$D8) ->  | O8: =SUM(I8,K8,M8) -> 
A9: 2 | B9: Civil | D9: =SUMIFS(#REF!,#REF!,$B9,#REF!,$E9) ->  | F9: =IF($D9=0,"--",G9/$D9) ->  | G9: =SUMIFS(#REF!,#REF!,$B9,#REF!,$Q$1) ->  | H9: =+IF(G9=0,"--",I9/G9) ->  | I9: =SUMIFS(#REF!,#REF!,$B9,#REF!,$Q$1) ->  | J9: =IF($D9=0,"--",K9/$D9) ->  | K9: =SUMIFS(#REF!,#REF!,$B9,#REF!,$Q$1) ->  | L9: =IF($D9=0,"--",M9/$D9) ->  | M9: =SUMIFS(#REF!,#REF!,$B9,#REF!,$Q$1) ->  | N9: =IF($D9=0,"--",O9/$D9) ->  | O9: =SUM(I9,K9,M9) -> 
A10: 3 | B10: Deep Foundations | D10: =SUMIFS(#REF!,#REF!,$B10,#REF!,$E10) ->  | E10: Piles- | G10: =SUMIFS(#REF!,#REF!,$B10,#REF!,$Q$1) ->  | I10: =SUMIFS(#REF!,#REF!,$B10,#REF!,$Q$1) ->  | K10: =SUMIFS(#REF!,#REF!,$B10,#REF!,$Q$1) ->  | M10: =SUMIFS(#REF!,#REF!,$B10,#REF!,$Q$1) -> 
A11: 4 | B11: Concrete | D11: =SUMIFS(#REF!,#REF!,$B11,#REF!,$E11) ->  | E11: CY- | G11: =SUMIFS(#REF!,#REF!,$B11,#REF!,$Q$1) ->  | I11: =SUMIFS(#REF!,#REF!,$B11,#REF!,$Q$1) ->  | K11: =SUMIFS(#REF!,#REF!,$B11,#REF!,$Q$1) ->  | M11: =SUMIFS(#REF!,#REF!,$B11,#REF!,$Q$1) -> 
B12: Cementitious Grout | D12: =SUMIFS(#REF!,#REF!,$B12,#REF!,$E12) ->  | E12: SF- | G12: =SUMIFS(#REF!,#REF!,$B12,#REF!,$Q$1) ->  | I12: =SUMIFS(#REF!,#REF!,$B12,#REF!,$Q$1) ->  | K12: =SUMIFS(#REF!,#REF!,$B12,#REF!,$Q$1) ->  | M12: =SUMIFS(#REF!,#REF!,$B12,#REF!,$Q$1) -> 
B13: Epoxy Grout | D13: =SUMIFS(#REF!,#REF!,$B13,#REF!,$E13) ->  | E13: CF- | G13: =SUMIFS(#REF!,#REF!,$B13,#REF!,$Q$1) ->  | I13: =SUMIFS(#REF!,#REF!,$B13,#REF!,$Q$1) ->  | K13: =SUMIFS(#REF!,#REF!,$B13,#REF!,$Q$1) ->  | M13: =SUMIFS(#REF!,#REF!,$B13,#REF!,$Q$1) -> 
A14: 5 | B14: Steel | D14: =SUMIFS(#REF!,#REF!,$B14,#REF!,$E14) ->  | E14: TON- | G14: =SUMIFS(#REF!,#REF!,$B14,#REF!,$Q$1) ->  | I14: =SUMIFS(#REF!,#REF!,$B14,#REF!,$Q$1) ->  | K14: =SUMIFS(#REF!,#REF!,$B14,#REF!,$Q$1) ->  | M14: =SUMIFS(#REF!,#REF!,$B14,#REF!,$Q$1) -> 
A15: 6 | B15: Buildings | D15: =SUMIFS(#REF!,#REF!,$B15,#REF!,$E15) ->  | E15: SF- | G15: =SUMIFS(#REF!,#REF!,$B15,#REF!,$Q$1) ->  | I15: =SUMIFS(#REF!,#REF!,$B15,#REF!,$Q$1) ->  | K15: =SUMIFS(#REF!,#REF!,$B15,#REF!,$Q$1) ->  | M15: =SUMIFS(#REF!,#REF!,$B15,#REF!,$Q$1) -> 
A16: 7 | B16: Pipe | D16: =SUMIFS(#REF!,#REF!,$B16,#REF!,$E16) ->  | E16: LF- | G16: =SUMIFS(#REF!,#REF!,$B16,#REF!,$Q$1) ->  | I16: =SUMIFS(#REF!,#REF!,$B16,#REF!,$Q$1) ->  | K16: =SUMIFS(#REF!,#REF!,$B16,#REF!,$Q$1) ->  | M16: =SUMIFS(#REF!,#REF!,$B16,#REF!,$Q$1) -> 
A17: 8 | B17: Electrical | D17: =SUMIFS(#REF!,#REF!,$B17,#REF!,$E17) ->  | E17: LF- | G17: =SUMIFS(#REF!,#REF!,$B17,#REF!,$Q$1) ->  | I17: =SUMIFS(#REF!,#REF!,$B17,#REF!,$Q$1) ->  | K17: =SUMIFS(#REF!,#REF!,$B17,#REF!,$Q$1) ->  | M17: =SUMIFS(#REF!,#REF!,$B17,#REF!,$Q$1) -> 
A18: 9 | B18: Instrument & Control | D18: =SUMIFS(#REF!,#REF!,$B18,#REF!,$E18) ->  | E18: EA- | G18: =SUMIFS(#REF!,#REF!,$B18,#REF!,$Q$1) ->  | I18: =SUMIFS(#REF!,#REF!,$B18,#REF!,$Q$1) ->  | K18: =SUMIFS(#REF!,#REF!,$B18,#REF!,$Q$1) ->  | M18: =SUMIFS(#REF!,#REF!,$B18,#REF!,$Q$1) -> 
A19: 10 | B19: Piping Insulation | D19: =SUMIFS(#REF!,#REF!,$B19,#REF!,$E19) ->  | E19: LF- | G19: =SUMIFS(#REF!,#REF!,$B19,#REF!,$Q$1) ->  | I19: =SUMIFS(#REF!,#REF!,$B19,#REF!,$Q$1) ->  | K19: =SUMIFS(#REF!,#REF!,$B19,#REF!,$Q$1) ->  | M19: =SUMIFS(#REF!,#REF!,$B19,#REF!,$Q$1) -> 
B20: Equipment Insulation | D20: =SUMIFS(#REF!,#REF!,$B20,#REF!,$E20) ->  | E20: SF- | G20: =SUMIFS(#REF!,#REF!,$B20,#REF!,$Q$1) ->  | I20: =SUMIFS(#REF!,#REF!,$B20,#REF!,$Q$1) ->  | K20: =SUMIFS(#REF!,#REF!,$B20,#REF!,$Q$1) ->  | M20: =SUMIFS(#REF!,#REF!,$B20,#REF!,$Q$1) -> 
B21: Fireproofing | D21: =SUMIFS(#REF!,#REF!,$B21,#REF!,$E21) ->  | E21: SF- | G21: =SUMIFS(#REF!,#REF!,$B21,#REF!,$Q$1) ->  | I21: =SUMIFS(#REF!,#REF!,$B21,#REF!,$Q$1) ->  | K21: =SUMIFS(#REF!,#REF!,$B21,#REF!,$Q$1) ->  | M21: =SUMIFS(#REF!,#REF!,$B21,#REF!,$Q$1) -> 
A22: 11 | B22: Coatings | D22: =SUMIFS(#REF!,#REF!,$B22,#REF!,$E22) ->  | E22: SF- | G22: =SUMIFS(#REF!,#REF!,$B22,#REF!,$Q$1) ->  | I22: =SUMIFS(#REF!,#REF!,$B22,#REF!,$Q$1) ->  | K22: =SUMIFS(#REF!,#REF!,$B22,#REF!,$Q$1) ->  | M22: =SUMIFS(#REF!,#REF!,$B22,#REF!,$Q$1) -> 
A23: 12 | B23: Special | D23: =SUMIFS(#REF!,#REF!,$B23,#REF!,$E23) ->  | G23: =SUMIFS(#REF!,#REF!,$B23,#REF!,$Q$1) ->  | I23: =SUMIFS(#REF!,#REF!,$B23,#REF!,$Q$1) ->  | K23: =SUMIFS(#REF!,#REF!,$B23,#REF!,$Q$1) ->  | M23: =SUMIFS(#REF!,#REF!,$B23,#REF!,$Q$1) -> 
A24: 13 | B24: Demolition | D24: =SUMIFS(#REF!,#REF!,$B24,#REF!,$E24) ->  | G24: =SUMIFS(#REF!,#REF!,$B24,#REF!,$Q$1) ->  | I24: =SUMIFS(#REF!,#REF!,$B24,#REF!,$Q$1) ->  | K24: =SUMIFS(#REF!,#REF!,$B24,#REF!,$Q$1) ->  | M24: =SUMIFS(#REF!,#REF!,$B24,#REF!,$Q$1) -> 
A25: 14 | B25: Miscellaneous Directs | D25: =SUMIFS(#REF!,#REF!,$B25,#REF!,$E25) ->  | G25: =SUMIFS(#REF!,#REF!,$B25,#REF!,$Q$1) ->  | I25: =SUMIFS(#REF!,#REF!,$B25,#REF!,$Q$1) ->  | K25: =SUMIFS(#REF!,#REF!,$B25,#REF!,$Q$1) ->  | M25: =SUMIFS(#REF!,#REF!,$B25,#REF!,$Q$1) -> 
B27: Freight | F27: -- | G27: =SUMIFS(#REF!,#REF!,$B27,#REF!,$Q$1) ->  | I27: =SUMIFS(#REF!,#REF!,$B27,#REF!,$Q$1) ->  | J27: -- | K27: =SUMIFS(#REF!,#REF!,$B27,#REF!,$Q$1) ->  | L27: -- | M27: =SUMIFS(#REF!,#REF!,$B27,#REF!,$Q$1) ->  | N27: --
C29: Total Direct Cost (TDC) | G29: =SUM(G8:G28) ->  | H29: =+IF(G29=0,"--",I29/G29) ->  | I29: =SUM(I8:I28) ->  | K29: =SUM(K8:K28) ->  | M29: =SUM(M8:M28) ->  | O29: =SUM(O8:O28) ->  | P29: =ROUND(+O29-M29-K29-I29, 0) -> 
G30: =ROUND(SUMIFS(#REF!,#REF!,$Q$1)-G29, 0) ->  | I30: =ROUND(SUMIFS(#REF!,#REF!,$Q$1)-I29, 0) ->  | K30: =ROUND(SUMIFS(#REF!,#REF!,$Q$1)-K29, 0) ->  | M30: =ROUND(SUMIFS(#REF!,#REF!,$Q$1)-M29, 0) ->  | O30: =ROUND(SUMIFS(#REF!,#REF!,$Q$1)-O29, 0) -> 

Sheet Scenario Options (hidden)
F1: Scenario 1 | J1: Scenario 2 | N1: Scenario 3 | R1: Scenario 4 | V1: Scenario 5 | Z1: Scenario 6
F2: T1 | G2: T4 | H2: T5 | I2: Total | J2: T1 | K2: T4 | L2: T5 | M2: Total | N2: T1 | O2: T4 | P2: T5 | Q2: Total | R2: T1 | S2: T4 | T2: T5 | U2: Total | V2: T1 | W2: T4 | X2: T5 | Y2: Total | Z2: T1 | AA2: T4 | AB2: T5 | AC2: Total
A3: 69kV Conductor & Hardware Only | G3: 1.17 | I3: =SUM(F3:H3) -> 1.17
A4: 69kV S/C | G4: 1.92 | H4: 1.14 | I4: 3.06 | O4: 2.27 | P4: 0.65
A5: 230kV S/C | F5: 2.6 | H5: 0.33 | I5: 2.93 | N5: 2.6
A6: 230kV/69 DC (69kV Vacant) | H6: 1.17 | I6: 1.17
A7: 230/69kV DC | J7: 2.6 | L7: 1.6 | P7: 0.65 | S7: 2.05 | T7: =1.38+1.16 -> 2.54 | V7: 0 | W7: 2.05 | X7: =0.73+0.71+(2*(0.44)) -> 2.32 | Z7: 1 | AA7: 2.32 | AB7: =(2*1.15)+(2*1.15) -> 4.6
A9: DESCRIPTION | C9: QTY | D9: UNIT | E9: UM
A11: Site Work
I12: =SUM(F12:H12) -> 0 | M12: =SUM(J12:L12) -> 0 | Q12: =SUM(N12:P12) -> 0 | U12: =SUM(R12:T12) -> 0 | Y12: =SUM(V12:X12) -> 0 | AC12: =SUM(Z12:AB12) -> 0
A13: ROW Clearing & Grubbing | C13: =(1)*5280*100/43560 -> 12.12121212 | D13: acre | F13: =SUM(F4:F7)*5280*30/43560*0.1 -> 0.9454545455 | G13: =SUM(G4:G7)*5280*30/43560*0.1 -> 0.6981818182 | H13: 0.96 | I13: =SUM(F13:H13) -> 2.603636364 | J13: =SUM(J4:J7)*5280*30/43560*0.1 -> 0.9454545455 | K13: =SUM(K4:K7)*5280*30/43560*0.1 -> 0 | L13: 0.5818181818 | M13: =SUM(J13:L13) -> 1.527272727 | N13: =SUM(N4:N7)*5280*30/43560*0.1 -> 0.9454545455 | O13: =SUM(O4:O7)*5280*30/43560*0.1 -> 0.8254545455 | P13: 0.4727272727 | Q13: =SUM(N13:P13) -> 2.243636364 | R13: =SUM(R4:R7)*5280*30/43560*0.1 -> 0 | S13: =SUM(S4:S7)*5280*30/43560*0.1 -> 0.7454545455 | T13: 0.9236363636 | U13: =SUM(R13:T13) -> 1.669090909 | V13: =SUM(V4:V7)*5280*30/43560*0.1 -> 0 | W13: =SUM(W4:W7)*5280*30/43560*0.1 -> 0.7454545455 | X13: 0.8436363636 | Y13: =SUM(V13:X13) -> 1.589090909 | Z13: =SUM(Z4:Z7)*5280*30/43560*0.1 -> 0.3636363636 | AA13: =SUM(AA4:AA7)*5280*30/43560*0.1 -> 0.8436363636 | AB13: 1.672727273 | AC13: =SUM(Z13:AB13) -> 2.88
A14: Cut/Fill new yard addition (92,408SF/27+3423CY) | D14: CY | E14: 0.2 | I14: 0 | M14: 0 | Q14: 0 | U14: 0 | Y14: 0 | AC14: 0
A15: Silt Fence (Install , Maintain, and Remove) | C15: =SUM(C67:C101)*100 -> 9800 | D15: LF | E15: 0.15 | F15: =200*SUM(F67:F101) -> 4200 | G15: =200*SUM(G67:G101) -> 3200 | H15: 4600 | I15: 12000 | J15: =200*SUM(J67:J101) -> 4400 | K15: =200*SUM(K67:K101) -> 0 | L15: 2800 | M15: 7200 | N15: =200*SUM(N67:N101) -> 4200 | O15: =200*SUM(O67:O101) -> 3800 | P15: 2200 | Q15: 10200 | R15: =200*SUM(R67:R101) -> 0 | S15: =200*SUM(S67:S101) -> 3600 | T15: 4400 | U15: 8000 | V15: =200*SUM(V67:V101) -> 0 | W15: =200*SUM(W67:W101) -> 3600 | X15: 4000 | Y15: 7600 | Z15: =200*SUM(Z67:Z101) -> 1800 | AA15: =200*SUM(AA67:AA101) -> 4000 | AB15: 7800 | AC15: 13600
I16: 0 | M16: 0 | Q16: 0 | U16: 0 | Y16: 0 | AC16: 0
I17: 0 | M17: 0 | Q17: 0 | U17: 0 | Y17: 0 | AC17: 0
I18: 0 | M18: 0 | Q18: 0 | U18: 0 | Y18: 0 | AC18: 0
I19: 0 | M19: 0 | Q19: 0 | U19: 0 | Y19: 0 | AC19: 0
I20: 0 | M20: 0 | Q20: 0 | U20: 0 | Y20: 0 | AC20: 0
I21: 0 | M21: 0 | Q21: 0 | U21: 0 | Y21: 0 | AC21: 0
I22: 0 | M22: 0 | Q22: 0 | U22: 0 | Y22: 0 | AC22: 0
A23: Temporary Access roads | I23: 0 | M23: 0 | Q23: 0 | U23: 0 | Y23: 0 | AC23: 0
I24: 0 | M24: 0 | Q24: 0 | U24: 0 | Y24: 0 | AC24: 0
A25: Access Roads | C25: =5*5280*16*0.5/27*0.5 -> 3911.111111 | D25: cy | E25: 0.09 | I25: 0 | M25: 0 | Q25: 0 | U25: 0 | Y25: 0 | AC25: 0
A26: Resurface Roadway 3'' Thick | D26: sy | E26: 0.02 | I26: 0 | M26: 0 | Q26: 0 | U26: 0 | Y26: 0 | AC26: 0
A27: Temporay Concrete Pole | D27: ea | E27: 240 | I27: 0 | M27: 0 | Q27: 0 | U27: 0 | Y27: 0 | AC27: 0
A28: Temporary Steel Pole | D28: ea | E28: 240 | I28: 0 | M28: 0 | Q28: 0 | U28: 0 | Y28: 0 | AC28: 0
I29: 0 | M29: 0 | Q29: 0 | U29: 0 | Y29: 0 | AC29: 0
I30: 0 | M30: 0 | Q30: 0 | U30: 0 | Y30: 0 | AC30: 0
I31: 0 | M31: 0 | Q31: 0 | U31: 0 | Y31: 0 | AC31: 0
I32: 0 | M32: 0 | Q32: 0 | U32: 0 | Y32: 0 | AC32: 0
I33: 0 | M33: 0 | Q33: 0 | U33: 0 | Y33: 0 | AC33: 0
I34: 0 | M34: 0 | Q34: 0 | U34: 0 | Y34: 0 | AC34: 0
A35: Matting | I35: 0 | M35: 0 | Q35: 0 | U35: 0 | Y35: 0 | AC35: 0
I36: 0 | M36: 0 | Q36: 0 | U36: 0 | Y36: 0 | AC36: 0
A37: Wood Timber Matting (8' x 14') | C37: =5*5280*14*0.25 -> 92400 | D37: sf | E37: 0.01785714286 | F37: =625*SUM(F67:F101) -> 13125 | G37: =625*SUM(G67:G101) -> 10000 | H37: 14375 | I37: 37500 | J37: =625*SUM(J67:J101) -> 13750 | K37: =625*SUM(K67:K101) -> 0 | L37: 8750 | M37: 22500 | N37: =625*SUM(N67:N101) -> 13125 | O37: =625*SUM(O67:O101) -> 11875 | P37: 6875 | Q37: 31875 | R37: =625*SUM(R67:R101) -> 0 | S37: =625*SUM(S67:S101) -> 11250 | T37: 13750 | U37: 25000 | V37: =625*SUM(V67:V101) -> 0 | W37: =625*SUM(W67:W101) -> 11250 | X37: 12500 | Y37: 23750 | Z37: =625*SUM(Z67:Z101) -> 5625 | AA37: =625*SUM(AA67:AA101) -> 12500 | AB37: 24375 | AC37: 42500
I38: 0 | M38: 0 | Q38: 0 | U38: 0 | Y38: 0 | AC38: 0
I39: 0 | M39: 0 | Q39: 0 | U39: 0 | Y39: 0 | AC39: 0
I40: 0 | M40: 0 | Q40: 0 | U40: 0 | Y40: 0 | AC40: 0
A41: Foundations | I41: 0 | M41: 0 | Q41: 0 | U41: 0 | Y41: 0 | AC41: 0
I42: 0 | M42: 0 | Q42: 0 | U42: 0 | Y42: 0 | AC42: 0
A43: Total foundations--New | C43: 3650 | D43: cy | E43: 8 | I43: 0 | M43: 0 | Q43: 0 | U43: 0 | Y43: 0 | AC43: 0
A44: Receive & Set Cassion | C44: =SUM(C84:C101)+SUM(C67:C82)*2 -> 98 | D44: Ea | E44: 16 | I44: 0 | M44: 0 | Q44: 0 | U44: 0 | Y44: 0 | AC44: 0
A45: Excavation & Concrete Backfill | C45: =C44*18.2*0.2 -> 356.72 | D45: cy | E45: 16 | F45: =SUM(F89,F96,F97)*20 -> 80 | G45: =SUM(G89,G96,G97)*20 -> 60 | H45: 260 | I45: 400 | J45: =SUM(J89,J96,J97)*20 -> 440 | K45: =SUM(K89,K96,K97)*20 -> 0 | L45: 280 | M45: 720 | N45: =SUM(N89,N96,N97)*20 -> 80 | O45: =SUM(O89,O96,O97)*20 -> 80 | P45: 140 | Q45: 300 | R45: =SUM(R89,R96,R97)*20 -> 0 | S45: =SUM(S89,S96,S97)*20 -> 360 | T45: 440 | U45: 800 | V45: =SUM(V89,V96,V97)*20 -> 0 | W45: =SUM(W89,W96,W97)*20 -> 360 | X45: 400 | Y45: 760 | Z45: =SUM(Z89,Z96,Z97)*20 -> 180 | AA45: =SUM(AA89,AA96,AA97)*20 -> 400 | AB45: 780 | AC45: 1360
A46: Excavation & Rock Backfill | C46: =C44*18.2*0.8 -> 1426.88 | D46: cy | E46: 16 | F46: =SUM(F87,F95)*20 -> 340 | G46: =SUM(G87,G95)*20 -> 260 | H46: 200 | I46: 800 | J46: =SUM(J87,J95)*20 -> 0 | K46: =SUM(K87,K95)*20 -> 0 | L46: 0 | M46: 0 | N46: =SUM(N87,N95)*20 -> 340 | O46: =SUM(O87,O95)*20 -> 300 | P46: 80 | Q46: 720 | R46: =SUM(R87,R95)*20 -> 0 | S46: =SUM(S87,S95)*20 -> 0 | T46: 0 | U46: 0 | V46: =SUM(V87,V95)*20 -> 0 | W46: =SUM(W87,W95)*20 -> 0 | X46: 0 | Y46: 0 | Z46: =SUM(Z87,Z95)*20 -> 0 | AA46: =SUM(AA87,AA95)*20 -> 0 | AB46: 0 | AC46: 0
I47: 0 | M47: 0 | Q47: 0 | U47: 0 | Y47: 0 | AC47: 0
A48: Grounding | I48: 0 | M48: 0 | Q48: 0 | U48: 0 | Y48: 0 | AC48: 0
I49: 0 | M49: 0 | Q49: 0 | U49: 0 | Y49: 0 | AC49: 0
A50: Machine Trenching | C50: =SUM(C67:C101)*(20) -> 1960 | D50: ft | E50: 0.02 | F50: =SUM(F67:F101)*(20) -> 420 | G50: =SUM(G67:G101)*(20) -> 320 | H50: 460 | I50: 1200 | J50: =SUM(J67:J101)*(20) -> 440 | K50: =SUM(K67:K101)*(20) -> 0 | L50: 280 | M50: 720 | N50: =SUM(N67:N101)*(20) -> 420 | O50: =SUM(O67:O101)*(20) -> 380 | P50: 220 | Q50: 1020 | R50: =SUM(R67:R101)*(20) -> 0 | S50: =SUM(S67:S101)*(20) -> 360 | T50: 440 | U50: 800 | V50: =SUM(V67:V101)*(20) -> 0 | W50: =SUM(W67:W101)*(20) -> 360 | X50: 400 | Y50: 760 | Z50: =SUM(Z67:Z101)*(20) -> 180 | AA50: =SUM(AA67:AA101)*(20) -> 400 | AB50: 780 | AC50: 1360
A51: Hand Trenching | D51: ft | E51: 0.05 | I51: 0 | M51: 0 | Q51: 0 | U51: 0 | Y51: 0 | AC51: 0
I52: 0 | M52: 0 | Q52: 0 | U52: 0 | Y52: 0 | AC52: 0
A53: Main Grd Grid, 500MCM Cu | D53: ft | E53: 0.07 | I53: 0 | M53: 0 | Q53: 0 | U53: 0 | Y53: 0 | AC53: 0
A54: Main Grd Grid 300 MCM Cu | D54: ft | E54: 0.05 | I54: 0 | M54: 0 | Q54: 0 | U54: 0 | Y54: 0 | AC54: 0
A55: Main Grd Grid 4/0 Str bare copper | C55: =SUM(C67:C101)*(100+20) -> 11760 | D55: ft | E55: 0.04 | F55: =SUM(F67:F101)*(100+20) -> 2520 | G55: =SUM(G67:G101)*(100+20) -> 1920 | H55: 2760 | I55: 7200 | J55: =SUM(J67:J101)*(100+20) -> 2640 | K55: =SUM(K67:K101)*(100+20) -> 0 | L55: 1680 | M55: 4320 | N55: =SUM(N67:N101)*(100+20) -> 2520 | O55: =SUM(O67:O101)*(100+20) -> 2280 | P55: 1320 | Q55: 6120 | R55: =SUM(R67:R101)*(100+20) -> 0 | S55: =SUM(S67:S101)*(100+20) -> 2160 | T55: 2640 | U55: 4800 | V55: =SUM(V67:V101)*(100+20) -> 0 | W55: =SUM(W67:W101)*(100+20) -> 2160 | X55: 2400 | Y55: 4560 | Z55: =SUM(Z67:Z101)*(100+20) -> 1080 | AA55: =SUM(AA67:AA101)*(100+20) -> 2400 | AB55: 4680 | AC55: 8160
I56: 0 | M56: 0 | Q56: 0 | U56: 0 | Y56: 0 | AC56: 0
A57: Cadweld Shot | C57: =C59*2 -> 196 | D57: ea | E57: 0.35 | F57: =F59*2 -> 42 | G57: =G59*2 -> 32 | H57: 46 | I57: 120 | J57: =J59*2 -> 44 | K57: =K59*2 -> 0 | L57: 28 | M57: 72 | N57: =N59*2 -> 42 | O57: =O59*2 -> 38 | P57: 22 | Q57: 102 | R57: =R59*2 -> 0 | S57: =S59*2 -> 36 | T57: 44 | U57: 80 | V57: =V59*2 -> 0 | W57: =W59*2 -> 36 | X57: 40 | Y57: 76 | Z57: =Z59*2 -> 18 | AA57: =AA59*2 -> 40 | AB57: 78 | AC57: 136
A58: Mold (1 mold for every sixty shots) | C58: =ROUNDUP(C57/60,0) -> 4 | D58: ea | E58: 0 | F58: =ROUNDUP(F57/60,0) -> 1 | G58: =ROUNDUP(G57/60,0) -> 1 | H58: 1 | I58: 3 | J58: =ROUNDUP(J57/60,0) -> 1 | K58: =ROUNDUP(K57/60,0) -> 0 | L58: =ROUNDUP(L57/60,0) -> 1 | M58: 2 | N58: =ROUNDUP(N57/60,0) -> 1 | O58: =ROUNDUP(O57/60,0) -> 1 | P58: =ROUNDUP(P57/60,0) -> 1 | Q58: 3 | R58: =ROUNDUP(R57/60,0) -> 0 | S58: =ROUNDUP(S57/60,0) -> 1 | T58: =ROUNDUP(T57/60,0) -> 1 | U58: 2 | V58: =ROUNDUP(V57/60,0) -> 0 | W58: =ROUNDUP(W57/60,0) -> 1 | X58: =ROUNDUP(X57/60,0) -> 1 | Y58: 2 | Z58: =ROUNDUP(Z57/60,0) -> 1 | AA58: =ROUNDUP(AA57/60,0) -> 1 | AB58: =ROUNDUP(AB57/60,0) -> 2 | AC58: 4
A59: 3/4" X 10' copperweld ground rod | C59: =C95+C96+C97 -> 98 | D59: ea | E59: 1 | F59: =SUM(F67:F101) -> 21 | G59: =SUM(G67:G101) -> 16 | H59: 23 | I59: 60 | J59: =SUM(J67:J101) -> 22 | K59: =SUM(K67:K101) -> 0 | L59: 14 | M59: 36 | N59: =SUM(N67:N101) -> 21 | O59: =SUM(O67:O101) -> 19 | P59: 11 | Q59: 51 | R59: =SUM(R67:R101) -> 0 | S59: =SUM(S67:S101) -> 18 | T59: 22 | U59: 40 | V59: =SUM(V67:V101) -> 0 | W59: =SUM(W67:W101) -> 18 | X59: 20 | Y59: 38 | Z59: =SUM(Z67:Z101) -> 9 | AA59: =SUM(AA67:AA101) -> 20 | AB59: 39 | AC59: 68
A60: 3/4" X 20' copperweld ground rod w/coupling | D60: ea | E60: 2 | I60: 0 | M60: 0 | Q60: 0 | U60: 0 | Y60: 0 | AC60: 0
A61: 2 hole ground lug for 4/0 ground wire | B61: Burndy | D61: ea | E61: 0.35 | I61: 0 | M61: 0 | Q61: 0 | U61: 0 | Y61: 0 | AC61: 0
A62: 2 hole ground lug for 300MCM ground wire | B62: Burndy | D62: ea | E62: 0.35 | I62: 0 | M62: 0 | Q62: 0 | U62: 0 | Y62: 0 | AC62: 0
A63: 2 hole ground lug for 500MCM ground wire | B63: Burndy | D63: ea | E63: 0.5 | I63: 0 | M63: 0 | Q63: 0 | U63: 0 | Y63: 0 | AC63: 0
I64: 0 | M64: 0 | Q64: 0 | U64: 0 | Y64: 0 | AC64: 0
A65: Structures & Poles | I65: 0 | M65: 0 | Q65: 0 | U65: 0 | Y65: 0 | AC65: 0
I66: 0 | M66: 0 | Q66: 0 | U66: 0 | Y66: 0 | AC66: 0
A67: 15kV H-FRAME SINGLE CIRCUIT | D67: ea | E67: 130 | I67: 0 | M67: 0 | Q67: 0 | U67: 0 | Y67: 0 | AC67: 0
A68: 15kV H-FRAME DOUBLE CIRCUIT | D68: ea | E68: 130 | I68: 0 | M68: 0 | Q68: 0 | U68: 0 | Y68: 0 | AC68: 0
A69: 34.5kV H-FRAME SINGLE CIRCUIT | D69: ea | E69: 130 | I69: 0 | M69: 0 | Q69: 0 | U69: 0 | Y69: 0 | AC69: 0
A70: 34.5kV H-FRAME DOUBLE CIRCUIT | D70: ea | E70: 130 | I70: 0 | M70: 0 | Q70: 0 | U70: 0 | Y70: 0 | AC70: 0
A71: 69kV H-FRAME SINGLE CIRCUIT | D71: ea | E71: 130 | I71: 0 | M71: 0 | Q71: 0 | U71: 0 | Y71: 0 | AC71: 0
A72: 69kV H-FRAME DOUBLE CIRCUIT | D72: ea | E72: 130 | I72: 0 | M72: 0 | Q72: 0 | U72: 0 | Y72: 0 | AC72: 0
A73: 115kV H-FRAME SINGLE CIRCUIT | D73: ea | E73: 180 | I73: 0 | M73: 0 | Q73: 0 | U73: 0 | Y73: 0 | AC73: 0
A74: 115kV H-FRAME DOUBLE CIRCUIT | D74: ea | E74: 180 | I74: 0 | M74: 0 | Q74: 0 | U74: 0 | Y74: 0 | AC74: 0
A75: 138kV H-FRAME SINGLE CIRCUIT | D75: ea | E75: 180 | I75: 0 | M75: 0 | Q75: 0 | U75: 0 | Y75: 0 | AC75: 0
A76: 138kV H-FRAME DOUBLE CIRCUIT | D76: ea | E76: 180 | I76: 0 | M76: 0 | Q76: 0 | U76: 0 | Y76: 0 | AC76: 0
A77: 230kV H-FRAME SINGLE CIRCUIT | D77: ea | E77: 200 | I77: =SUM(F77:H77) -> 0 | M77: =SUM(J77:L77) -> 0 | Q77: =SUM(N77:P77) -> 0 | U77: =SUM(R77:T77) -> 0 | Y77: =SUM(V77:X77) -> 0 | AC77: =SUM(Z77:AB77) -> 0
A78: 230kV H-FRAME DOUBLE CIRCUIT | D78: ea | E78: 220 | I78: 0 | M78: 0 | Q78: 0 | U78: 0 | Y78: 0 | AC78: 0
A79: 345kV H-FRAME SINGLE CIRCUIT | D79: ea | E79: 260 | I79: 0 | M79: 0 | Q79: 0 | U79: 0 | Y79: 0 | AC79: 0
A80: 345kV H-FRAME DOUBLE CIRCUIT | D80: ea | E80: 260 | I80: 0 | M80: 0 | Q80: 0 | U80: 0 | Y80: 0 | AC80: 0
A81: 500kV H-FRAME SINGLE CIRCUIT | D81: ea | E81: 300 | I81: 0 | M81: 0 | Q81: 0 | U81: 0 | Y81: 0 | AC81: 0
A82: 500kV H-FRAME DOUBLE CIRCUIT | D82: ea | E82: 300 | I82: 0 | M82: 0 | Q82: 0 | U82: 0 | Y82: 0 | AC82: 0
I83: 0 | M83: 0 | Q83: 0 | U83: 0 | Y83: 0 | AC83: 0
A84: 15kV MONOPOLE SINGLE CIRCUIT | D84: ea | E84: 80 | I84: 0 | M84: 0 | Q84: 0 | U84: 0 | Y84: 0 | AC84: 0
A85: 15kV MONOPOLE DOUBLE CIRCUIT | D85: ea | E85: 80 | I85: 0 | M85: 0 | Q85: 0 | U85: 0 | Y85: 0 | AC85: 0
A86: 69kV 3-POLE CONCRETE DE SINGLE CIRCUIT | D86: ea | E86: 97 | I86: 0 | M86: 0 | Q86: 0 | U86: 0 | Y86: 0 | AC86: 0
A87: 69kV LD-10 STEEL TAN SINGLE CIRCUIT | D87: ea | E87: 97 | F87: =ROUND(F$4*5280/630*0.8, 0) -> 0 | G87: =ROUND(G$4*5280/630*0.8, 0) -> 13 | H87: =ROUND(H$4*5280/630*0.8, 0) -> 8 | I87: 21 | J87: 0 | K87: =ROUND(K$4*5280/630*0.8, 0) -> 0 | L87: =ROUND(L$4*5280/630*0.8, 0) -> 0 | M87: 0 | N87: =ROUND(N$4*5280/630*0.8, 0) -> 0 | O87: =ROUND(O$4*5280/630*0.8, 0) -> 15 | P87: =ROUND(P$4*5280/630*0.8, 0) -> 4 | Q87: 19 | R87: =ROUND(R$4*5280/630*0.8, 0) -> 0 | S87: =ROUND(S$4*5280/630*0.8, 0) -> 0 | T87: =ROUND(T$4*5280/630*0.8, 0) -> 0 | U87: 0 | V87: =ROUND(V$4*5280/630*0.8, 0) -> 0 | W87: =ROUND(W$4*5280/630*0.8, 0) -> 0 | X87: =ROUND(X$4*5280/630*0.8, 0) -> 0 | Y87: 0 | Z87: =ROUND(Z$4*5280/630*0.8, 0) -> 0 | AA87: =ROUND(AA$4*5280/630*0.8, 0) -> 0 | AB87: =ROUND(AB$4*5280/630*0.8, 0) -> 0 | AC87: 0
A88: 69kV TEMPORARY STRUCTURES | D88: ea | E88: 97 | I88: 0 | M88: 0 | Q88: 0 | U88: 0 | Y88: 0 | AC88: 0
A89: 69kV LD-10 STEEL DE SINGLE CIRCUIT | D89: ea | E89: 97 | F89: =ROUND(F$4*5280/630*0.2, 0) -> 0 | G89: =ROUND(G$4*5280/630*0.2, 0) -> 3 | H89: =ROUND(H$4*5280/630*0.2, 0) -> 2 | I89: 5 | J89: 0 | K89: =ROUND(K$4*5280/630*0.2, 0) -> 0 | L89: =ROUND(L$4*5280/630*0.2, 0) -> 0 | M89: 0 | N89: =ROUND(N$4*5280/630*0.2, 0) -> 0 | O89: =ROUND(O$4*5280/630*0.2, 0) -> 4 | P89: =ROUND(P$4*5280/630*0.2, 0) -> 1 | Q89: 5 | R89: =ROUND(R$4*5280/630*0.2, 0) -> 0 | S89: =ROUND(S$4*5280/630*0.2, 0) -> 0 | T89: =ROUND(T$4*5280/630*0.2, 0) -> 0 | U89: 0 | V89: =ROUND(V$4*5280/630*0.2, 0) -> 0 | W89: =ROUND(W$4*5280/630*0.2, 0) -> 0 | X89: =ROUND(X$4*5280/630*0.2, 0) -> 0 | Y89: 0 | Z89: =ROUND(Z$4*5280/630*0.2, 0) -> 0 | AA89: =ROUND(AA$4*5280/630*0.2, 0) -> 0 | AB89: =ROUND(AB$4*5280/630*0.2, 0) -> 0 | AC89: 0
A90: 115kV 3-POLE CONCRETE DE SINGLE CIRCUIT | D90: ea | E90: 97 | I90: 0 | M90: 0 | Q90: 0 | U90: 0 | Y90: 0 | AC90: 0
A91: 115kV STEEL SINGLE CIRCUIT DE | D91: ea | E91: 97 | I91: 0 | M91: 0 | Q91: 0 | U91: 0 | Y91: 0 | AC91: 0
A92: 115kV CONCRETE TAN DOUBLE CIRCUIT | D92: ea | E92: 97 | I92: 0 | M92: 0 | Q92: 0 | U92: 0 | Y92: 0 | AC92: 0
A93: 138kV MONOPOLE SINGLE CIRCUIT | D93: ea | E93: 120 | I93: 0 | M93: 0 | Q93: 0 | U93: 0 | Y93: 0 | AC93: 0
A94: 138kV MONOPOLE DOUBLE CIRCUIT | D94: ea | E94: 120 | I94: 0 | M94: 0 | Q94: 0 | U94: 0 | Y94: 0 | AC94: 0
A95: 230kV CONCRETE TAN SINGLE CIRCUIT | C95: 0 | D95: ea | E95: 120 | F95: =ROUND(F$5*5280/630*0.8, 0) -> 17 | G95: =ROUND(G$5*5280/630*0.8, 0) -> 0 | H95: 2 | I95: 19 | J95: =ROUND(J$5*5280/630*0.8, 0) -> 0 | K95: =ROUND(K$5*5280/630*0.8, 0) -> 0 | L95: 0 | M95: 0 | N95: =ROUND(N$5*5280/630*0.8, 0) -> 17 | O95: =ROUND(O$5*5280/630*0.8, 0) -> 0 | P95: 0 | Q95: 17 | R95: =ROUND(R$5*5280/630*0.8, 0) -> 0 | S95: =ROUND(S$5*5280/630*0.8, 0) -> 0 | T95: 0 | U95: 0 | V95: =ROUND(V$5*5280/630*0.8, 0) -> 0 | W95: =ROUND(W$5*5280/630*0.8, 0) -> 0 | X95: 0 | Y95: 0 | Z95: =ROUND(Z$5*5280/630*0.8, 0) -> 0 | AA95: =ROUND(AA$5*5280/630*0.8, 0) -> 0 | AB95: 0 | AC95: 0
A96: 230kV MONOPOLE SINGLE CIRCUIT DE | C96: 0 | D96: ea | E96: 120 | F96: =ROUND(F$5*5280/630*0.2, 0) -> 4 | G96: =ROUND(G$5*5280/630*0.2, 0) -> 0 | H96: 1 | I96: 5 | J96: =ROUND(J$5*5280/630*0.2, 0) -> 0 | K96: =ROUND(K$5*5280/630*0.2, 0) -> 0 | L96: 0 | M96: 0 | N96: =ROUND(N$5*5280/630*0.2, 0) -> 4 | O96: =ROUND(O$5*5280/630*0.2, 0) -> 0 | P96: 0 | Q96: 4 | R96: =ROUND(R$5*5280/630*0.2, 0) -> 0 | S96: =ROUND(S$5*5280/630*0.2, 0) -> 0 | T96: 0 | U96: 0 | V96: =ROUND(V$5*5280/630*0.2, 0) -> 0 | W96: =ROUND(W$5*5280/630*0.2, 0) -> 0 | X96: 0 | Y96: 0 | Z96: =ROUND(Z$5*5280/630*0.2, 0) -> 0 | AA96: =ROUND(AA$5*5280/630*0.2, 0) -> 0 | AB96: 0 | AC96: 0
A97: 230/69kV MONOPOLE DOUBLE CIRCUIT | C97: 98 | D97: ea | E97: 130 | F97: =ROUNDUP(SUM(F$6,F$7)*5280/630,0) -> 0 | G97: =ROUNDUP(SUM(G$6,G$7)*5280/630,0) -> 0 | H97: 10 | I97: 10 | J97: =ROUNDUP(SUM(J$6,J$7)*5280/630,0) -> 22 | K97: =ROUNDUP(SUM(K$6,K$7)*5280/630,0) -> 0 | L97: 14 | M97: 36 | N97: =ROUNDUP(SUM(N$6,N$7)*5280/630,0) -> 0 | O97: =ROUNDUP(SUM(O$6,O$7)*5280/630,0) -> 0 | P97: 6 | Q97: 6 | R97: =ROUNDUP(SUM(R$6,R$7)*5280/630,0) -> 0 | S97: =ROUNDUP(SUM(S$6,S$7)*5280/630,0) -> 18 | T97: 22 | U97: 40 | V97: =ROUNDUP(SUM(V$6,V$7)*5280/630,0) -> 0 | W97: =ROUNDUP(SUM(W$6,W$7)*5280/630,0) -> 18 | X97: 20 | Y97: 38 | Z97: =ROUNDUP(SUM(Z$6,Z$7)*5280/630,0) -> 9 | AA97: =ROUNDUP(SUM(AA$6,AA$7)*5280/630,0) -> 20 | AB97: 39 | AC97: 68
A98: 345kV MONOPOLE SINGLE CIRCUIT | D98: ea | E98: 150 | I98: 0 | M98: 0 | Q98: 0 | U98: 0 | Y98: 0 | AC98: 0
A99: 345kV MONOPOLE DOUBLE CIRCUIT | D99: ea | E99: 160 | I99: 0 | M99: 0 | Q99: 0 | U99: 0 | Y99: 0 | AC99: 0
A100: 500kV MONOPOLE SINGLE CIRCUIT | D100: ea | E100: 150 | I100: 0 | M100: 0 | Q100: 0 | U100: 0 | Y100: 0 | AC100: 0
A101: 500kV MONOPOLE DOUBLE CIRCUIT | D101: ea | E101: 160 | I101: 0 | M101: 0 | Q101: 0 | U101: 0 | Y101: 0 | AC101: 0
I102: 0 | M102: 0 | Q102: 0 | U102: 0 | Y102: 0 | AC102: 0
A103: LATTICE STRUCTURES (BY LB) | D103: LBS | E103: 0.014375 | I103: 0 | M103: 0 | Q103: 0 | U103: 0 | Y103: 0 | AC103: 0
I104: 0 | M104: 0 | Q104: 0 | U104: 0 | Y104: 0 | AC104: 0
I105: 0 | M105: 0 | Q105: 0 | U105: 0 | Y105: 0 | AC105: 0
A106: Pole Assemblies | I106: 0 | M106: 0 | Q106: 0 | U106: 0 | Y106: 0 | AC106: 0
I107: 0 | M107: 0 | Q107: 0 | U107: 0 | Y107: 0 | AC107: 0
A108: 69kV Polymer Strain String Assembly | D108: ea | E108: 2.756470588 | F108: =F110 -> 0 | G108: =G110 -> 39 | H108: 24 | I108: 63 | J108: =J110 -> 0 | K108: =K110 -> 0 | L108: 0 | M108: 0 | N108: =N110 -> 0 | O108: =O110 -> 45 | P108: 12 | Q108: 57 | R108: =R110 -> 0 | S108: =S110 -> 0 | T108: 0 | U108: 0 | V108: =V110 -> 0 | W108: =W110 -> 0 | X108: 0 | Y108: 0 | Z108: =Z110 -> 0 | AA108: =AA110 -> 0 | AB108: 0 | AC108: 0
A109: 69kV Porcelain V-String Suspension Assembly | D109: ea | E109: 3.901764706 | I109: 0 | M109: 0 | Q109: 0 | U109: 0 | Y109: 0 | AC109: 0
A110: 69kV Porcelain Braced Post Assembly | C110: 0 | D110: ea | E110: 7.434705882 | F110: =F87*3 -> 0 | G110: =G87*3 -> 39 | H110: 24 | I110: 63 | J110: =J87*3 -> 0 | K110: =K87*3 -> 0 | L110: 0 | M110: 0 | N110: =N87*3 -> 0 | O110: =O87*3 -> 45 | P110: 12 | Q110: 57 | R110: =R87*3 -> 0 | S110: =S87*3 -> 0 | T110: 0 | U110: 0 | V110: =V87*3 -> 0 | W110: =W87*3 -> 0 | X110: 0 | Y110: 0 | Z110: =Z87*3 -> 0 | AA110: =AA87*3 -> 0 | AB110: 0 | AC110: 0
A111: 69kV Porcelain Dual I-String Assembly | D111: ea | E111: 4.522941176 | I111: 0 | M111: 0 | Q111: 0 | U111: 0 | Y111: 0 | AC111: 0
A112: 69kV Porcelain Deadend Assembly | D112: ea | E112: 8 | F112: =F89*6 -> 0 | G112: =G89*6 -> 18 | H112: 12 | I112: 30 | J112: =J89*6 -> 0 | K112: =K89*6 -> 0 | L112: 0 | M112: 0 | N112: =N89*6 -> 0 | O112: =O89*6 -> 24 | P112: 6 | Q112: 30 | R112: =R89*6 -> 0 | S112: =S89*6 -> 0 | T112: 0 | U112: 0 | V112: =V89*6 -> 0 | W112: =W89*6 -> 0 | X112: 0 | Y112: 0 | Z112: =Z89*6 -> 0 | AA112: =AA89*6 -> 0 | AB112: 0 | AC112: 0
A113: 69kV Polymer Post Assembly | D113: ea | E113: 4.95 | I113: 0 | M113: 0 | Q113: 0 | U113: 0 | Y113: 0 | AC113: 0
A114: 69kV Swinging Angle Bracket | D114: ea | E114: 3.397058824 | I114: 0 | M114: 0 | Q114: 0 | U114: 0 | Y114: 0 | AC114: 0
A115: 69kV Wood Tangent Crossarm w/ 2 X-Brace Assy | D115: ea | E115: 15.31588235 | I115: 0 | M115: 0 | Q115: 0 | U115: 0 | Y115: 0 | AC115: 0
A116: 69kV Wood Small Angle Crossarm w/ 1 X-Brace Assy | D116: ea | E116: 26.55529412 | I116: 0 | M116: 0 | Q116: 0 | U116: 0 | Y116: 0 | AC116: 0
A117: 69kV 45° Wood Deadend Crossarm Assembly | D117: ea | E117: 80.81117647 | I117: 0 | M117: 0 | Q117: 0 | U117: 0 | Y117: 0 | AC117: 0
A118: 69kV 90° Wood Deadend Crossarm Assembly | D118: ea | E118: 81.54882353 | I118: 0 | M118: 0 | Q118: 0 | U118: 0 | Y118: 0 | AC118: 0
A119: 69kV 31' Wood Deadend X-Brace Assembly | D119: ea | E119: 6.794117647 | I119: 0 | M119: 0 | Q119: 0 | U119: 0 | Y119: 0 | AC119: 0
A120: 69kV Steel Tangent Crossarm & X-Brace Assembly | D120: ea | E120: 14.55882353 | I120: 0 | M120: 0 | Q120: 0 | U120: 0 | Y120: 0 | AC120: 0
A121: 69kV 45° Steel Deadend Crossarm Assembly | D121: ea | E121: 40.76470588 | I121: 0 | M121: 0 | Q121: 0 | U121: 0 | Y121: 0 | AC121: 0
A122: 69kV 90° Steel Deadend Crossarm Assembly | D122: ea | E122: 48.52941176 | I122: 0 | M122: 0 | Q122: 0 | U122: 0 | Y122: 0 | AC122: 0
A123: 69kV 31' Steel Deadend X-Brace Assembly | D123: ea | E123: 4.852941176 | F123: =F112 -> 0 | G123: =G112 -> 18 | H123: 12 | I123: 30 | J123: =J112 -> 0 | K123: =K112 -> 0 | L123: 0 | M123: 0 | N123: =N112 -> 0 | O123: =O112 -> 24 | P123: 6 | Q123: 30 | R123: =R112 -> 0 | S123: =S112 -> 0 | T123: 0 | U123: 0 | V123: =V112 -> 0 | W123: =W112 -> 0 | X123: 0 | Y123: 0 | Z123: =Z112 -> 0 | AA123: =AA112 -> 0 | AB123: 0 | AC123: 0
A124: 69kV Steel Jumper Arm Assembly | D124: ea | E124: 2.911764706 | I124: 0 | M124: 0 | Q124: 0 | U124: 0 | Y124: 0 | AC124: 0
A125: 138kV Porcelain I-String Suspension Assembly | D125: ea | E125: 3.215882353 | I125: 0 | M125: 0 | Q125: 0 | U125: 0 | Y125: 0 | AC125: 0
A126: 138kV Porcelain V-String Suspension Assembly | D126: ea | E126: 4.552058824 | I126: 0 | M126: 0 | Q126: 0 | U126: 0 | Y126: 0 | AC126: 0
A127: 138kV Porcelain Braced Post Assembly | D127: ea | E127: 8.673823529 | I127: 0 | M127: 0 | Q127: 0 | U127: 0 | Y127: 0 | AC127: 0
A128: 138kV Porcelain Dual I-String Assembly | D128: ea | E128: 5.276764706 | I128: 0 | M128: 0 | Q128: 0 | U128: 0 | Y128: 0 | AC128: 0
A129: 138kV Porcelain Deadend Assembly | D129: ea | E129: 8 | I129: 0 | M129: 0 | Q129: 0 | U129: 0 | Y129: 0 | AC129: 0
A130: 138kV Porcelain Jumper Post Assembly | D130: ea | E130: 5.775 | I130: 0 | M130: 0 | Q130: 0 | U130: 0 | Y130: 0 | AC130: 0
A131: 138kV Swinging Angle Bracket | D131: ea | E131: 3.963235294 | I131: 0 | M131: 0 | Q131: 0 | U131: 0 | Y131: 0 | AC131: 0
A132: 138kV Wood Tangent Crossarm w/ 2 X-Brace Assy | D132: ea | E132: 17.86852941 | I132: 0 | M132: 0 | Q132: 0 | U132: 0 | Y132: 0 | AC132: 0
A133: 138kV Wood Small Angle Crossarm w/ 1 X-Brace Assy | D133: ea | E133: 30.98117647 | I133: 0 | M133: 0 | Q133: 0 | U133: 0 | Y133: 0 | AC133: 0
A134: 138kV 45° Wood Deadend Crossarm Assembly | D134: ea | E134: 94.27970588 | I134: 0 | M134: 0 | Q134: 0 | U134: 0 | Y134: 0 | AC134: 0
A135: 138kV 90° Wood Deadend Crossarm Assembly | D135: ea | E135: 95.14029412 | I135: 0 | M135: 0 | Q135: 0 | U135: 0 | Y135: 0 | AC135: 0
A136: 138kV 31' Wood Deadend X-Brace Assembly | D136: ea | E136: 7.926470588 | I136: 0 | M136: 0 | Q136: 0 | U136: 0 | Y136: 0 | AC136: 0
A137: 138kV Steel Tangent Crossarm & X-Brace Assembly | D137: ea | E137: 16.98529412 | I137: 0 | M137: 0 | Q137: 0 | U137: 0 | Y137: 0 | AC137: 0
A138: 138kV 45° Steel Deadend Crossarm Assembly | D138: ea | E138: 47.55882353 | I138: 0 | M138: 0 | Q138: 0 | U138: 0 | Y138: 0 | AC138: 0
A139: 138kV 90° Steel Deadend Crossarm Assembly | D139: ea | E139: 56.61764706 | I139: 0 | M139: 0 | Q139: 0 | U139: 0 | Y139: 0 | AC139: 0
A140: 138kV 31' Steel Deadend X-Brace Assembly | D140: ea | E140: 5.661764706 | I140: 0 | M140: 0 | Q140: 0 | U140: 0 | Y140: 0 | AC140: 0
A141: 138kV Steel Jumper Arm Assembly | D141: ea | E141: 3.397058824 | I141: =SUM(F141:H141) -> 0 | M141: =SUM(J141:L141) -> 0 | Q141: =SUM(N141:P141) -> 0 | U141: =SUM(R141:T141) -> 0 | Y141: =SUM(V141:X141) -> 0 | AC141: =SUM(Z141:AB141) -> 0
A142: 230kV Porcelain I-String Suspension Assembly | D142: ea | E142: 4.134705882 | F142: =F144 -> 51 | G142: =G144 -> 0 | H142: 36 | I142: 87 | J142: =J144 -> 66 | K142: =K144 -> 0 | L142: 42 | M142: 108 | N142: =N144 -> 51 | O142: =O144 -> 0 | P142: 18 | Q142: 69 | R142: =R144 -> 0 | S142: =S144 -> 54 | T142: 66 | U142: 120 | V142: =V144 -> 0 | W142: =W144 -> 54 | X142: 60 | Y142: 114 | Z142: =Z144 -> 27 | AA142: =AA144 -> 60 | AB142: 117 | AC142: 204
A143: 230kV Porcelain V-String Suspension Assembly | D143: ea | E143: 5.852647059 | I143: 0 | M143: 0 | Q143: 0 | U143: 0 | Y143: 0 | AC143: 0
A144: 230kV Porcelain Braced Post Assembly | C144: 246 | D144: ea | E144: 11.15205882 | F144: =SUM(F95,F97)*3 -> 51 | G144: =SUM(G95,G97)*3 -> 0 | H144: 36 | I144: 87 | J144: =SUM(J95,J97)*3 -> 66 | K144: =SUM(K95,K97)*3 -> 0 | L144: 42 | M144: 108 | N144: =SUM(N95,N97)*3 -> 51 | O144: =SUM(O95,O97)*3 -> 0 | P144: 18 | Q144: 69 | R144: =SUM(R95,R97)*3 -> 0 | S144: =SUM(S95,S97)*3 -> 54 | T144: 66 | U144: 120 | V144: =SUM(V95,V97)*3 -> 0 | W144: =SUM(W95,W97)*3 -> 54 | X144: 60 | Y144: 114 | Z144: =SUM(Z95,Z97)*3 -> 27 | AA144: =SUM(AA95,AA97)*3 -> 60 | AB144: 117 | AC144: 204
A145: 230kV Porcelain Dual I-String Assembly | D145: ea | E145: 6.784411765 | I145: 0 | M145: 0 | Q145: 0 | U145: 0 | Y145: 0 | AC145: 0
A146: 230kV Porcelain Deadend Assembly | C146: 96 | D146: ea | E146: 8 | F146: =F96*6 -> 24 | G146: =G96*6 -> 0 | H146: 6 | I146: 30 | J146: =J96*6 -> 0 | K146: =K96*6 -> 0 | L146: 0 | M146: 0 | N146: =N96*6 -> 24 | O146: =O96*6 -> 0 | P146: 0 | Q146: 24 | R146: =R96*6 -> 0 | S146: =S96*6 -> 0 | T146: 0 | U146: 0 | V146: =V96*6 -> 0 | W146: =W96*6 -> 0 | X146: 0 | Y146: 0 | Z146: =Z96*6 -> 0 | AA146: =AA96*6 -> 0 | AB146: 0 | AC146: 0
A147: 230kV Porcelain Jumper Post Assembly | C147: 24 | D147: ea | E147: 7.425 | F147: =F146 -> 24 | G147: =G146 -> 0 | H147: 6 | I147: 30 | J147: =J146 -> 0 | K147: =K146 -> 0 | L147: =L146 -> 0 | M147: 0 | N147: =N146 -> 24 | O147: =O146 -> 0 | P147: =P146 -> 0 | Q147: 24 | R147: =R146 -> 0 | S147: =S146 -> 0 | T147: =T146 -> 0 | U147: 0 | V147: =V146 -> 0 | W147: =W146 -> 0 | X147: =X146 -> 0 | Y147: 0 | Z147: =Z146 -> 0 | AA147: =AA146 -> 0 | AB147: =AB146 -> 0 | AC147: 0
A148: 230kV Swinging Angle Bracket | D148: ea | E148: 5.095588235 | I148: 0 | M148: 0 | Q148: 0 | U148: 0 | Y148: 0 | AC148: 0
A149: 230kV Wood Tangent Crossarm w/ 2 X-Brace Assy | D149: ea | E149: 22.97382353 | I149: 0 | M149: 0 | Q149: 0 | U149: 0 | Y149: 0 | AC149: 0
A150: 230kV Wood Small Angle Crossarm w/ 1 X-Brace Assy | D150: ea | E150: 39.83294118 | I150: 0 | M150: 0 | Q150: 0 | U150: 0 | Y150: 0 | AC150: 0
A151: 230kV 45° Wood Deadend Crossarm Assembly | D151: ea | E151: 121.2167647 | I151: 0 | M151: 0 | Q151: 0 | U151: 0 | Y151: 0 | AC151: 0
A152: 230kV 90° Wood Deadend Crossarm Assembly | D152: ea | E152: 122.3232353 | I152: 0 | M152: 0 | Q152: 0 | U152: 0 | Y152: 0 | AC152: 0
A153: 230kV 31' Wood Deadend X-Brace Assembly | D153: ea | E153: 10.19117647 | I153: 0 | M153: 0 | Q153: 0 | U153: 0 | Y153: 0 | AC153: 0
A154: 230kV Steel Tangent Crossarm & X-Brace Assembly | D154: ea | E154: 21.83823529 | I154: 0 | M154: 0 | Q154: 0 | U154: 0 | Y154: 0 | AC154: 0
A155: 230kV 45° Steel Deadend Crossarm Assembly | D155: ea | E155: 61.14705882 | I155: 0 | M155: 0 | Q155: 0 | U155: 0 | Y155: 0 | AC155: 0
A156: 230kV 90° Steel Deadend Crossarm Assembly | D156: ea | E156: 72.79411765 | I156: 0 | M156: 0 | Q156: 0 | U156: 0 | Y156: 0 | AC156: 0
A157: 230kV 31' Steel Deadend X-Brace Assembly | D157: ea | E157: 7.279411765 | I157: 0 | M157: 0 | Q157: 0 | U157: 0 | Y157: 0 | AC157: 0
A158: 230kV Steel Jumper Arm Assembly | D158: ea | E158: 4.367647059 | I158: 0 | M158: 0 | Q158: 0 | U158: 0 | Y158: 0 | AC158: 0
A159: 345kV Porcelain I-String Suspension Assembly | D159: ea | E159: 4.594117647 | I159: 0 | M159: 0 | Q159: 0 | U159: 0 | Y159: 0 | AC159: 0
A160: 345kV Porcelain V-String Suspension Assembly | D160: ea | E160: 6.502941176 | I160: 0 | M160: 0 | Q160: 0 | U160: 0 | Y160: 0 | AC160: 0
A161: 345kV Porcelain Braced Post Assembly | D161: ea | E161: 12.39117647 | I161: 0 | M161: 0 | Q161: 0 | U161: 0 | Y161: 0 | AC161: 0
A162: 345kV Porcelain Dual I-String Assembly | D162: ea | E162: 7.538235294 | I162: 0 | M162: 0 | Q162: 0 | U162: 0 | Y162: 0 | AC162: 0
A163: 345kV Porcelain Deadend Assembly | D163: ea | E163: 10 | I163: 0 | M163: 0 | Q163: 0 | U163: 0 | Y163: 0 | AC163: 0
A164: 345kV Porcelain Jumper Post Assembly | D164: ea | E164: 8.25 | I164: 0 | M164: 0 | Q164: 0 | U164: 0 | Y164: 0 | AC164: 0
A165: 345kV Swinging Angle Bracket | D165: ea | E165: 5.661764706 | I165: 0 | M165: 0 | Q165: 0 | U165: 0 | Y165: 0 | AC165: 0
A166: 345kV Wood Tangent Crossarm w/ 2 X-Brace Assy | D166: ea | E166: 25.52647059 | I166: 0 | M166: 0 | Q166: 0 | U166: 0 | Y166: 0 | AC166: 0
A167: 345kV Wood Small Angle Crossarm w/ 1 X-Brace Assy | D167: ea | E167: 44.25882353 | I167: 0 | M167: 0 | Q167: 0 | U167: 0 | Y167: 0 | AC167: 0
A168: 345kV 45° Wood Deadend Crossarm Assembly | D168: ea | E168: 134.6852941 | I168: 0 | M168: 0 | Q168: 0 | U168: 0 | Y168: 0 | AC168: 0
A169: 345kV 90° Wood Deadend Crossarm Assembly | D169: ea | E169: 135.9147059 | I169: 0 | M169: 0 | Q169: 0 | U169: 0 | Y169: 0 | AC169: 0
A170: 345kV 31' Wood Deadend X-Brace Assembly | D170: ea | E170: 11.32352941 | I170: 0 | M170: 0 | Q170: 0 | U170: 0 | Y170: 0 | AC170: 0
A171: 345kV Steel Tangent Crossarm & X-Brace Assembly | D171: ea | E171: 24.26470588 | I171: 0 | M171: 0 | Q171: 0 | U171: 0 | Y171: 0 | AC171: 0
A172: 345kV 45° Steel Deadend Crossarm Assembly | D172: ea | E172: 67.94117647 | I172: 0 | M172: 0 | Q172: 0 | U172: 0 | Y172: 0 | AC172: 0
A173: 345kV 90° Steel Deadend Crossarm Assembly | D173: ea | E173: 80.88235294 | I173: 0 | M173: 0 | Q173: 0 | U173: 0 | Y173: 0 | AC173: 0
A174: 345kV 31' Steel Deadend X-Brace Assembly | D174: ea | E174: 8.088235294 | I174: 0 | M174: 0 | Q174: 0 | U174: 0 | Y174: 0 | AC174: 0
A175: 345kV Steel Jumper Arm Assembly | D175: ea | E175: 4.852941176 | I175: 0 | M175: 0 | Q175: 0 | U175: 0 | Y175: 0 | AC175: 0
A176: 500kV Porcelain I-String Suspension Assembly | D176: ea | E176: 38.4 | I176: 0 | M176: 0 | Q176: 0 | U176: 0 | Y176: 0 | AC176: 0
A177: 500kV Porcelain V-String Suspension Assembly | D177: ea | E177: 57.6 | I177: 0 | M177: 0 | Q177: 0 | U177: 0 | Y177: 0 | AC177: 0
A178: 500kV Porcelain Braced Post Assembly | D178: ea | E178: 13.63029412 | I178: 0 | M178: 0 | Q178: 0 | U178: 0 | Y178: 0 | AC178: 0
A179: 500kV Porcelain Dual I-String Assembly | D179: ea | E179: 8.292058824 | I179: 0 | M179: 0 | Q179: 0 | U179: 0 | Y179: 0 | AC179: 0
A180: 500kV Porcelain Deadend Assembly | D180: ea | E180: 26.9 | I180: 0 | M180: 0 | Q180: 0 | U180: 0 | Y180: 0 | AC180: 0
A181: 500kV Porcelain Jumper Post Assembly | D181: ea | E181: 16.3 | I181: 0 | M181: 0 | Q181: 0 | U181: 0 | Y181: 0 | AC181: 0
A182: 500kV Swinging Angle Bracket | D182: ea | E182: 6.227941176 | I182: 0 | M182: 0 | Q182: 0 | U182: 0 | Y182: 0 | AC182: 0
A183: 500kV Wood Tangent Crossarm w/ 2 X-Brace Assy | D183: ea | E183: 28.07911765 | I183: 0 | M183: 0 | Q183: 0 | U183: 0 | Y183: 0 | AC183: 0
A184: 500kV Wood Small Angle Crossarm w/ 1 X-Brace Assy | D184: ea | E184: 48.68470588 | I184: 0 | M184: 0 | Q184: 0 | U184: 0 | Y184: 0 | AC184: 0
A185: 500kV 45° Wood Deadend Crossarm Assembly | D185: ea | E185: 148.1538235 | I185: 0 | M185: 0 | Q185: 0 | U185: 0 | Y185: 0 | AC185: 0
A186: 500kV 90° Wood Deadend Crossarm Assembly | D186: ea | E186: 149.5061765 | I186: 0 | M186: 0 | Q186: 0 | U186: 0 | Y186: 0 | AC186: 0
A187: 500kV 31' Wood Deadend X-Brace Assembly | D187: ea | E187: 12.45588235 | I187: 0 | M187: 0 | Q187: 0 | U187: 0 | Y187: 0 | AC187: 0
A188: 500kV Steel Tangent Crossarm & X-Brace Assembly | D188: ea | E188: 26.69117647 | I188: 0 | M188: 0 | Q188: 0 | U188: 0 | Y188: 0 | AC188: 0
A189: 500kV 45° Steel Deadend Crossarm Assembly | D189: ea | E189: 74.73529412 | I189: 0 | M189: 0 | Q189: 0 | U189: 0 | Y189: 0 | AC189: 0
A190: 500kV 90° Steel Deadend Crossarm Assembly | D190: ea | E190: 88.97058824 | I190: 0 | M190: 0 | Q190: 0 | U190: 0 | Y190: 0 | AC190: 0
A191: 500kV 31' Steel Deadend X-Brace Assembly | D191: ea | E191: 8.897058824 | I191: 0 | M191: 0 | Q191: 0 | U191: 0 | Y191: 0 | AC191: 0
A192: 500kV Steel Jumper Arm Assembly | D192: ea | E192: 5.338235294 | I192: 0 | M192: 0 | Q192: 0 | U192: 0 | Y192: 0 | AC192: 0
I193: 0 | M193: 0 | Q193: 0 | U193: 0 | Y193: 0 | AC193: 0
A194: OHGW Support Assembly | D194: ea | E194: 0.8088235294 | I194: 0 | M194: 0 | Q194: 0 | U194: 0 | Y194: 0 | AC194: 0
A195: OHGW Suspension Assembly | C195: 0 | D195: ea | E195: 2.2 | I195: 0 | M195: 0 | Q195: 0 | U195: 0 | Y195: 0 | AC195: 0
A196: OHGW Running Angle Suspension Assembly | D196: ea | E196: 1.617647059 | I196: 0 | M196: 0 | Q196: 0 | U196: 0 | Y196: 0 | AC196: 0
A197: OHGW Deadend Assembly | D197: ea | E197: 4.5 | I197: 0 | M197: 0 | Q197: 0 | U197: 0 | Y197: 0 | AC197: 0
A198: OHGW Damper, Spiral | D198: ea | E198: 0.6470588235 | I198: 0 | M198: 0 | Q198: 0 | U198: 0 | Y198: 0 | AC198: 0
A199: OPGW Suspension Assembly | C199: 164 | D199: ea | E199: 1.876470588 | F199: =0.8*SUM(F67:F101) -> 16.8 | G199: =0.8*SUM(G67:G101) -> 12.8 | H199: 18.4 | I199: 48 | J199: =0.8*SUM(J67:J101) -> 17.6 | K199: =0.8*SUM(K67:K101) -> 0 | L199: 11.2 | M199: 28.8 | N199: =0.8*SUM(N67:N101) -> 16.8 | O199: =0.8*SUM(O67:O101) -> 15.2 | P199: 8.8 | Q199: 40.8 | R199: =0.8*SUM(R67:R101) -> 0 | S199: =0.8*SUM(S67:S101) -> 14.4 | T199: 17.6 | U199: 32 | V199: =0.8*SUM(V67:V101) -> 0 | W199: =0.8*SUM(W67:W101) -> 14.4 | X199: 16 | Y199: 30.4 | Z199: =0.8*SUM(Z67:Z101) -> 7.2 | AA199: =0.8*SUM(AA67:AA101) -> 16 | AB199: 31.2 | AC199: 54.4
A200: OPGW Running Angle Suspension Assembly | D200: ea | E200: 2.2 | I200: 0 | M200: 0 | Q200: 0 | U200: 0 | Y200: 0 | AC200: 0
A201: OPGW Deadend Assembly | C201: 64 | D201: ea | E201: 4.464705882 | F201: =0.2*SUM(F67:F101) -> 4.2 | G201: =0.2*SUM(G67:G101) -> 3.2 | H201: 4.6 | I201: 12 | J201: =0.2*SUM(J67:J101) -> 4.4 | K201: =0.2*SUM(K67:K101) -> 0 | L201: 2.8 | M201: 7.2 | N201: =0.2*SUM(N67:N101) -> 4.2 | O201: =0.2*SUM(O67:O101) -> 3.8 | P201: 2.2 | Q201: 10.2 | R201: =0.2*SUM(R67:R101) -> 0 | S201: =0.2*SUM(S67:S101) -> 3.6 | T201: 4.4 | U201: 8 | V201: =0.2*SUM(V67:V101) -> 0 | W201: =0.2*SUM(W67:W101) -> 3.6 | X201: 4 | Y201: 7.6 | Z201: =0.2*SUM(Z67:Z101) -> 1.8 | AA201: =0.2*SUM(AA67:AA101) -> 4 | AB201: 7.8 | AC201: 13.6
A202: OPGW Damper, Spiral | D202: ea | E202: 0.6470588235 | I202: 0 | M202: 0 | Q202: 0 | U202: 0 | Y202: 0 | AC202: 0
... 94 more rows
